bitfinex-derivatives/quotes_BTCF0:USTF0_20250918
["timestamp","ask_amount","ask_price","bid_price","bid_amount"]
[1758205087485,1.12173542,117650.0,117640.0,0.3989]
[1758205087686,0.02301,117650.0,117640.0,0.67967542]
[1758205087997,0.02301,117650.0,117640.0,1.21045084]
[1758205088297,0.02301,117650.0,117640.0,0.92967542]
[1758205088793,0.02301,117650.0,117640.0,1.21045084]
[1758205088994,0.02301,117650.0,117640.0,0.92967542]
[1758205089194,0.02301,117650.0,117640.0,1.21045084]
[1758205089391,0.001,117650.0,117640.0,1.21045084]
[1758205089590,0.001,117650.0,117640.0,2.01533084]
[1758205095206,0.001,117650.0,117640.0,1.99206084]
[1758205095410,0.001,117650.0,117640.0,2.07702214]
[1758205095603,0.001,117650.0,117640.0,2.43702214]
[1758205096308,0.001,117650.0,117640.0,1.96291756]
[1758205096506,0.001,117650.0,117640.0,2.48682214]
[1758205096708,0.001,117650.0,117640.0,2.40186084]
[1758205097006,0.001,117650.0,117640.0,2.48682204]
[1758205097701,0.0001,117660.0,117650.0,0.0361]
[1758205098003,0.0001,117670.0,117660.0,0.0361]
[1758205098208,0.0001,117680.0,117670.0,0.0361]
[1758205098511,0.02211,117690.0,117680.0,0.0361]
[1758205098705,0.02201,117690.0,117680.0,0.31687542]
[1758205099102,0.30278542,117690.0,117680.0,1.12143542]
[1758205099812,0.30278542,117690.0,117680.0,0.0361]
[1758205100315,0.30778542,117690.0,117680.0,0.0361]
[1758205100509,0.30778542,117690.0,117680.0,0.31687542]
[1758205101812,0.02701,117690.0,117680.0,0.67767542]
[1758205102509,0.02701,117690.0,117680.0,0.40518421]
[1758205102810,0.02701,117690.0,117680.0,1.49035963]
[1758205104813,0.02701,117690.0,117680.0,1.20958421]
[1758205105014,0.02701,117690.0,117680.0,1.49023963]
[1758205107712,0.02701,117690.0,117680.0,1.20946421]
[1758205107908,0.02701,117690.0,117680.0,1.49023963]
[1758205108320,0.02701,117690.0,117680.0,0.40518421]
[1758205108521,0.02701,117690.0,117680.0,1.49007963]
[1758205108722,0.30778542,117690.0,117680.0,1.49007963]
[1758205108917,0.30778542,117690.0,117680.0,0.68595963]
[1758205109117,0.30778542,117690.0,117680.0,1.49003963]
[1758205109621,0.30778542,117690.0,117680.0,1.20926421]
[1758205109826,0.30778542,117690.0,117680.0,1.49003963]
[1758205111713,0.02701,117690.0,117680.0,1.49003963]
[1758205112026,0.005,117690.0,117680.0,1.77081505]
[1758205112419,0.005,117690.0,117680.0,1.49003963]
[1758205112625,0.005,117690.0,117680.0,1.77081505]
[1758205113220,0.004,117690.0,117680.0,1.77081505]
[1758205113423,0.001,117690.0,117680.0,1.77081505]
[1758205113623,0.004,117690.0,117680.0,2.02081505]
[1758205113826,0.004,117690.0,117680.0,2.10574745]
[1758205114625,0.004,117690.0,117680.0,2.72652287]
[1758205114831,0.01756927,117700.0,117680.0,2.81145527]
[1758205115131,0.01756927,117700.0,117690.0,0.95874084]
[1758205115321,0.01746927,117700.0,117690.0,0.67796542]
[1758205115521,0.01746927,117700.0,117690.0,1.48176542]
[1758205115725,0.01746927,117700.0,117690.0,1.76254084]
[1758205115920,0.0001,117710.0,117690.0,1.76254084]
[1758205116120,0.0001,117710.0,117700.0,0.39719]
[1758205116321,0.02208,117720.0,117710.0,0.03639]
[1758205116621,0.02198,117720.0,117710.0,0.67796542]
[1758205117018,0.02198,117720.0,117710.0,1.48168542]
[1758205118033,0.30275542,117720.0,117710.0,1.48168542]
[1758205118326,0.02598,117720.0,117710.0,1.48168542]
[1758205118531,0.02598,117720.0,117710.0,0.67796542]
[1758205118826,0.30675542,117720.0,117710.0,1.48160542]
[1758205119630,0.31075542,117720.0,117710.0,1.48156542]
[1758205120128,0.02598,117720.0,117710.0,1.48356542]
[1758205120628,0.02198,117720.0,117710.0,1.48356542]
[1758205120830,0.02198,117720.0,117710.0,0.67996542]
[1758205121028,0.02198,117720.0,117710.0,1.48348542]
[1758205122224,0.02198,117720.0,117710.0,0.67996542]
[1758205122427,0.02198,117720.0,117710.0,1.48340542]
[1758205122834,0.02208,117730.0,117720.0,0.03639]
[1758205123131,0.0001,117740.0,117730.0,0.1212863]
[1758205123325,0.013,117770.0,117740.0,0.03639]
[1758205123326,0.0001,117750.0,117740.0,0.03639]
[1758205123528,0.0001,117760.0,117750.0,0.03639]
[1758205123735,0.30285542,117770.0,117760.0,0.03639]
[1758205123936,0.30285542,117770.0,117760.0,1.12052542]
[1758205123937,0.30275542,117770.0,117760.0,1.12052542]
[1758205124133,0.02198,117770.0,117760.0,0.03639]
[1758205124333,0.65471542,117780.0,117770.0,0.03639]
[1758205124334,0.02212,117780.0,117770.0,0.03639]
[1758205124528,4e-05,117780.0,117770.0,0.40550751]
[1758205124725,0.28081542,117780.0,117770.0,0.40550751]
[1758205124929,4e-05,117780.0,117770.0,0.68628293]
[1758205125230,0.31579542,117780.0,117770.0,0.39719]
[1758205125430,0.31579542,117780.0,117770.0,1.20043]
[1758205125624,0.31779542,117780.0,117770.0,1.20043]
[1758205125829,0.03702,117780.0,117770.0,0.39719]
[1758205126030,0.03702,117780.0,117770.0,1.20039]
[1758205126232,0.02402,117780.0,117770.0,1.20039]
[1758205126535,0.02402,117780.0,117770.0,0.39719]
[1758205126732,0.02702,117780.0,117770.0,1.20035]
[1758205126937,0.02702,117780.0,117770.0,0.39719]
[1758205127136,0.02702,117780.0,117770.0,1.20035]
[1758205127331,0.02702,117780.0,117770.0,0.39719]
[1758205127531,0.02702,117780.0,117770.0,1.20027]
[1758205127929,0.02702,117780.0,117770.0,0.39719]
[1758205127930,0.41861974,117780.0,117770.0,0.39719]
[1758205128131,0.41861974,117780.0,117770.0,1.20023]
[1758205128536,0.41861974,117780.0,117770.0,0.39719]
[1758205128736,0.02702,117780.0,117770.0,0.39719]
[1758205129037,0.02702,117780.0,117770.0,1.20015]
[1758205131033,0.02702,117780.0,117770.0,0.39719]
[1758205131235,0.02702,117780.0,117770.0,1.19999]
[1758205131438,0.02702,117780.0,117770.0,1.19995]
[1758205133838,0.42125859,117780.0,117770.0,1.19995]
[1758205134231,0.42125859,117780.0,117770.0,1.19983]
[1758205134732,0.00504,117780.0,117770.0,1.59406859]
[1758205135532,0.39927859,117780.0,117770.0,1.19983]
[1758205135735,0.00504,117780.0,117770.0,1.59406859]
[1758205136133,0.00504,117780.0,117770.0,1.19983]
[1758205136333,0.00504,117780.0,117770.0,1.66119641]
[1758205137040,0.00504,117780.0,117770.0,0.85855641]
[1758205137228,0.00504,117780.0,117770.0,1.66095641]
[1758205137433,0.42125859,117780.0,117770.0,0.46431782]
[1758205137737,0.42125859,117780.0,117770.0,1.26667782]
[1758205137936,0.42125859,117780.0,117770.0,0.46431782]
[1758205138339,0.02702,117780.0,117770.0,1.66091641]
[1758205138736,0.02702,117780.0,117770.0,0.85855641]
[1758205139040,0.42125859,117780.0,117770.0,1.26663782]
[1758205139740,0.02702,117780.0,117770.0,1.26663782]
[1758205139941,0.42125859,117780.0,117770.0,1.26663782]
[1758205141041,0.42125859,117780.0,117770.0,0.46431782]
[1758205141235,0.02702,117780.0,117770.0,1.66075641]
[1758205141638,0.42125859,117780.0,117770.0,1.66075641]
[1758205141838,0.42125859,117780.0,117770.0,0.85855641]
[1758205142039,0.02702,117780.0,117770.0,0.85855641]
[1758205142240,0.02702,117780.0,117770.0,1.66067641]
[1758205143243,0.00504,117780.0,117770.0,1.66067641]
[1758205144042,0.00504,117780.0,117770.0,1.26643782]
[1758205144242,0.00504,117780.0,117770.0,1.66067641]
[1758205145948,0.00304,117780.0,117770.0,1.6868678]
[1758205146245,4e-05,117780.0,117770.0,1.6868678]
[1758205146548,4e-05,117780.0,117770.0,1.6878678]
[1758205147241,4e-05,117780.0,117770.0,2.10829778]
[1758205148737,4e-05,117780.0,117770.0,1.26743782]
[1758205148941,4e-05,117780.0,117770.0,2.10829778]
[1758205149144,4e-05,117780.0,117770.0,2.40829778]
[1758205149347,4e-05,117780.0,117770.0,0.76531782]
[1758205149551,4e-05,117780.0,117770.0,1.60617778]
[1758205149746,4e-05,117780.0,117770.0,1.56703782]
[1758205149945,4e-05,117780.0,117770.0,2.40789778]
[1758205150347,4e-05,117780.0,117770.0,2.40785778]
[1758205152940,4e-05,117780.0,117770.0,2.35785778]
[1758205153146,4e-05,117780.0,117770.0,1.55617778]
[1758205153451,4e-05,117780.0,117770.0,2.35765778]
[1758205153651,4e-05,117780.0,117770.0,1.55617778]
[1758205153847,4e-05,117780.0,117770.0,2.35765778]
[1758205154956,4e-05,117780.0,117770.0,2.35757778]
[1758205156355,4e-05,117780.0,117770.0,2.35749778]
[1758205157155,4e-05,117780.0,117770.0,2.35745778]
[1758205158161,0.02192943,117780.0,117770.0,2.10745778]
[1758205158456,4e-05,117780.0,117770.0,2.10745778]
[1758205159868,4e-05,117780.0,117770.0,2.71745778]
[1758205160863,4e-05,117780.0,117770.0,1.87659782]
[1758205161065,4e-05,117780.0,117770.0,2.71745778]
[1758205164061,4e-05,117780.0,117770.0,1.87659782]
[1758205164366,4e-05,117780.0,117770.0,2.71745778]
[1758205165062,4e-05,117780.0,117770.0,1.87659782]
[1758205165264,1.39668998,117800.0,117790.0,0.03437]
[1758205165455,1.41462704,117800.0,117790.0,1.61643998]
[1758205166361,1.41662704,117800.0,117790.0,1.61643998]
[1758205166568,1.41762704,117800.0,117790.0,1.61643998]
[1758205167166,1.85096702,117800.0,117790.0,0.38194]
[1758205167364,1.85096702,117800.0,117790.0,1.60308998]
[1758205168062,1.85096702,117800.0,117790.0,1.61631998]
[1758205168269,1.85096852,117800.0,117790.0,1.61631998]
[1758205169768,0.99719856,117800.0,117790.0,1.61631998]
[1758205169963,1.41762854,117800.0,117790.0,1.61631998]
[1758205171771,1.41762854,117800.0,117790.0,1.19589]
[1758205171961,1.41762854,117800.0,117790.0,1.61631998]
[1758205172964,1.83805852,117800.0,117790.0,0.39517]
[1758205173160,1.85077852,117800.0,117790.0,1.19561]
[1758205173366,1.43034854,117800.0,117790.0,1.61603998]
[1758205174072,1.43034854,117800.0,117790.0,0.81559998]
[1758205174372,1.43034854,117800.0,117790.0,1.61599998]
[1758205176175,1.00991856,117800.0,117790.0,1.61599998]
[1758205176375,1.43034854,117800.0,117790.0,1.61599998]
[1758205177774,0.99719856,117800.0,117790.0,1.61599998]
[1758205177975,1.41762854,117800.0,117790.0,1.61599998]
[1758205178375,1.43034854,117800.0,117790.0,1.61599998]
[1758205178778,1.43034854,117800.0,117790.0,1.19557]
[1758205178979,1.40845771,117800.0,117790.0,0.81559998]
[1758205179275,1.40845771,117800.0,117790.0,1.61579998]
[1758205179877,1.39573771,117800.0,117790.0,1.61579998]
[1758205180272,1.41767318,117800.0,117790.0,1.61579998]
[1758205180872,1.43039318,117800.0,117790.0,1.19537]
[1758205181075,1.43039318,117800.0,117790.0,1.61579998]
[1758205181377,1.0099632,117800.0,117790.0,1.61579998]
[1758205181579,1.43039318,117800.0,117790.0,1.61579998]
[1758205181974,1.43039318,117800.0,117790.0,1.19537]
[1758205182179,1.43039318,117800.0,117790.0,1.61579998]
[1758205182379,1.43039318,117800.0,117790.0,1.61559998]
[1758205182567,1.0099632,117800.0,117790.0,1.61559998]
[1758205182772,1.41767318,117800.0,117790.0,1.61559998]
[1758205183374,1.43039318,117800.0,117790.0,0.39517]
[1758205183575,0.01272,117790.0,117780.0,0.80006]
[1758205183775,0.03553,117780.0,117770.0,0.38376]
[1758205183973,0.87638996,117780.0,117770.0,1.24320998]
[1758205184671,0.45595998,117780.0,117770.0,1.60400998]
[1758205184978,0.02281,117780.0,117770.0,1.61712998]
[1758205185178,0.02281,117780.0,117770.0,2.03755996]
[1758205185381,0.02281,117780.0,117770.0,1.61712998]
[1758205185579,0.02281,117780.0,117770.0,2.03755996]
[1758205185775,0.42152998,117790.0,117770.0,2.28755996]
[1758205185974,0.44433998,117790.0,117780.0,1.23763996]
[1758205186174,0.02281,117790.0,117780.0,1.23763996]
[1758205186371,0.44323998,117790.0,117780.0,1.23763996]
[1758205186579,0.44323998,117790.0,117780.0,0.39678]
[1758205186774,0.44323998,117790.0,117780.0,1.23763996]
[1758205186977,0.02281,117790.0,117780.0,0.81720998]
[1758205187176,0.02281,117790.0,117780.0,1.23763996]
[1758205187177,0.44323998,117790.0,117780.0,1.23763996]
[1758205188176,0.44323998,117790.0,117780.0,1.61696998]
[1758205188477,0.02381,117790.0,117780.0,2.03739996]
[1758205188676,0.001,117790.0,117780.0,2.28739996]
[1758205189982,0.001,117790.0,117780.0,1.44654]
[1758205190483,0.001,117790.0,117780.0,2.28739996]
[1758205190682,0.001,117790.0,117780.0,1.44654]
[1758205190875,0.001,117790.0,117780.0,2.28739996]
[1758205193277,0.001,117790.0,117780.0,1.44654]
[1758205193682,0.001,117790.0,117780.0,2.28739996]
[1758205193876,0.001,117790.0,117780.0,2.00703032]
[1758205194077,0.02381,117790.0,117780.0,0.64678]
[1758205194278,0.02381,117790.0,117780.0,1.20727032]
[1758205194479,0.001,117790.0,117780.0,2.00675032]
[1758205199083,0.001,117790.0,117780.0,2.00651032]
[1758205199789,0.001,117790.0,117780.0,2.08284097]
[1758205200586,0.95058773,117800.0,117790.0,0.03433]
[1758205200792,0.95048773,117800.0,117790.0,1.11652123]
[1758205200986,0.95048773,117800.0,117790.0,1.87652123]
[1758205201180,0.95048773,117800.0,117790.0,2.59963292]
[1758205201387,0.95048773,117800.0,117790.0,2.67562619]
[1758205201588,0.95048773,117800.0,117790.0,2.59073359]
[1758205201787,0.95048773,117800.0,117790.0,1.79161359]
[1758205202087,0.95048773,117800.0,117790.0,2.59073359]
[1758205202691,0.95148773,117800.0,117790.0,1.79161359]
[1758205202990,0.95148773,117800.0,117790.0,2.59069359]
[1758205203193,0.95148773,117800.0,117790.0,1.87646629]
[1758205203493,0.95148773,117800.0,117790.0,2.59061359]
[1758205203880,0.95148773,117800.0,117790.0,1.79161359]
[1758205204083,0.95148773,117800.0,117790.0,2.51458032]
[1758205204292,0.95148773,117800.0,117790.0,2.6753476]
[1758205204490,0.95148773,117800.0,117790.0,1.8763876]
[1758205204695,0.95148773,117800.0,117790.0,2.90943302]
[1758205204896,0.02348774,117800.0,117790.0,2.46661472]
[1758205205192,0.02348774,117800.0,117790.0,3.29629758]
[1758205205397,0.02348774,117800.0,117790.0,2.49737758]
[1758205205585,0.02348774,117800.0,117790.0,3.29625758]
[1758205205985,0.02248774,117800.0,117790.0,3.29725758]
[1758205206588,0.0001,117810.0,117790.0,3.38210318]
[1758205206793,0.0001,117810.0,117800.0,0.71687687]
[1758205206993,0.01404,117820.0,117800.0,2.43514225]
[1758205207196,0.01404,117820.0,117810.0,0.92129032]
[1758205207390,0.01394,117820.0,117810.0,1.72005032]
[1758205207894,0.01394,117820.0,117810.0,2.31005032]
[1758205208292,0.01394,117820.0,117810.0,2.02980516]
[1758205208494,0.01394,117820.0,117810.0,2.02972516]
[1758205209191,0.01394,117820.0,117810.0,1.23104516]
[1758205209387,0.01394,117820.0,117810.0,2.1075408]
[1758205209988,0.01494,117820.0,117810.0,2.1075408]
[1758205210387,0.01494,117820.0,117810.0,1.3089008]
[1758205210788,0.01594,117820.0,117810.0,2.1074608]
[1758205212090,0.01594,117820.0,117810.0,1.02865564]
[1758205212393,0.26594,117820.0,117810.0,1.3089008]
[1758205212592,0.26594,117820.0,117810.0,2.1073808]
[1758205213394,0.26594,117820.0,117810.0,1.3089008]
[1758205213594,0.26594,117820.0,117810.0,2.1073008]
[1758205213993,0.26594,117820.0,117810.0,1.3089008]
[1758205214190,0.26594,117820.0,117810.0,1.82705564]
[1758205214391,0.26594,117820.0,117810.0,2.1072608]
[1758205214586,0.26594,117820.0,117810.0,2.1072208]
[1758205216396,0.26594,117820.0,117810.0,2.1071408]
[1758205216789,0.26594,117820.0,117810.0,1.82685564]
[1758205216986,0.26594,117820.0,117810.0,2.1071008]
[1758205217701,0.26594,117820.0,117810.0,2.38734596]
[1758205217897,0.01594,117820.0,117810.0,2.38734596]
[1758205219500,0.01594,117820.0,117810.0,2.47218416]
[1758205219795,0.002,117820.0,117810.0,2.60218416]
[1758205220095,0.002,117820.0,117810.0,3.06218416]
[1758205220493,0.002,117820.0,117810.0,3.13801587]
[1758205220698,0.002,117820.0,117810.0,2.33981587]
[1758205220997,0.001,117820.0,117810.0,3.13781587]
[1758205221195,0.0001,117830.0,117820.0,0.084831]
[1758205221398,0.01394,117850.0,117820.0,3.02414193]
[1758205221601,0.01394,117850.0,117840.0,1.00184516]
[1758205221602,0.03683,117850.0,117840.0,1.00184516]
[1758205221801,0.03683,117850.0,117840.0,1.92976516]
[1758205222805,0.03683,117850.0,117840.0,1.13184516]
[1758205223102,0.03783,117850.0,117840.0,1.92976516]
[1758205223302,0.03883,117850.0,117840.0,1.92976516]
[1758205224393,0.01594,117850.0,117840.0,2.21001032]
[1758205225102,0.01594,117850.0,117840.0,2.23003804]
[1758205225499,0.002,117850.0,117840.0,2.72003804]
[1758205225693,0.002,117850.0,117840.0,3.31003804]
[1758205227194,0.01594,117850.0,117840.0,2.74954772]
[1758205227394,0.01594,117850.0,117840.0,3.31003804]
[1758205227606,0.002,117850.0,117840.0,3.31003804]
[1758205228495,0.002,117850.0,117840.0,3.39485444]
[1758205228700,0.002,117850.0,117840.0,3.6750996]
[1758205230108,0.002,117850.0,117840.0,3.30951804]
[1758205230403,0.002,117850.0,117840.0,3.39433444]
[1758205230606,0.002,117850.0,117840.0,3.6745796]
[1758205230807,4e-05,117860.0,117850.0,0.56049032]
[1758205231106,4e-05,117860.0,117850.0,2.68345962]
[1758205231402,4e-05,117860.0,117850.0,2.3729693]
[1758205231609,4e-05,117860.0,117850.0,2.93345962]
[1758205232406,4e-05,117860.0,117850.0,2.93337962]
[1758205233502,0.01394,117880.0,117860.0,0.0848007]
[1758205233707,0.03591,117880.0,117870.0,1.79900516]
[1758205233907,0.01394,117880.0,117870.0,2.29900516]
[1758205235605,0.26394,117880.0,117870.0,1.2216]
[1758205235811,0.26494,117880.0,117870.0,2.29896516]
[1758205236006,0.26494,117880.0,117870.0,2.30749303]
[1758205236309,0.26694,117880.0,117870.0,2.30749303]
[1758205236509,0.003,117880.0,117870.0,2.58773819]
[1758205236711,0.002,117880.0,117870.0,2.58773819]
[1758205236903,0.003,117880.0,117870.0,1.79061819]
[1758205237209,0.01603,117880.0,117870.0,1.79061819]
[1758205237411,0.01503,117880.0,117870.0,2.58757819]
[1758205238210,0.01503,117880.0,117870.0,1.79061819]
[1758205238411,0.01503,117880.0,117870.0,2.58753819]
[1758205239206,0.01403,117880.0,117870.0,2.58753819]
[1758205239916,0.01303,117880.0,117870.0,2.58849819]
[1758205240507,0.01303,117880.0,117870.0,2.02792787]
[1758205240713,0.01303,117880.0,117870.0,2.58941819]
[1758205241718,0.01303,117880.0,117870.0,1.51237303]
[1758205241919,0.29327516,117880.0,117870.0,1.51237303]
[1758205242213,0.01303,117880.0,117870.0,2.30905303]
[1758205242415,0.01303,117880.0,117870.0,1.23212787]
[1758205242613,0.01303,117880.0,117870.0,2.30901303]
[1758205243211,0.01408,117890.0,117870.0,1.79261819]
[1758205243417,0.01303,117880.0,117870.0,0.87142787]
[1758205243619,0.01303,117880.0,117870.0,2.02872787]
[1758205244221,0.01408,117890.0,117870.0,2.02872787]
[1758205244422,0.01408,117890.0,117880.0,0.92129032]
[1758205244624,0.01398,117890.0,117880.0,0.92129032]
[1758205246723,0.01398,117890.0,117880.0,1.49129032]
[1758205247319,0.01398,117890.0,117880.0,2.28773032]
[1758205248326,0.01398,117890.0,117880.0,1.49129032]
[1758205248528,0.01398,117890.0,117880.0,2.28769032]
[1758205248725,4e-05,117890.0,117880.0,2.90272318]
[1758205248928,4e-05,117890.0,117880.0,3.09793548]
[1758205249130,4e-05,117890.0,117880.0,2.30153548]
[1758205249329,4e-05,117890.0,117880.0,2.02129032]
[1758205249529,4e-05,117890.0,117880.0,2.25716]
[1758205249728,4e-05,117890.0,117880.0,1.96765032]
[1758205250132,4e-05,117890.0,117880.0,1.40716]
[1758205250322,4e-05,117890.0,117880.0,1.96765032]
[1758205250528,4e-05,117890.0,117880.0,1.97765032]
[1758205251131,4e-05,117890.0,117880.0,1.18129032]
[1758205251430,0.01307,117890.0,117880.0,1.18129032]
[1758205251632,0.01307,117890.0,117880.0,1.97761032]
[1758205251932,4e-05,117890.0,117880.0,1.97761032]
[1758205252132,4e-05,117890.0,117880.0,1.18129032]
[1758205252333,4e-05,117890.0,117880.0,1.97761032]
[1758205252533,4e-05,117890.0,117880.0,1.18129032]
[1758205252839,4e-05,117890.0,117880.0,1.97757032]
[1758205253037,0.01307,117890.0,117880.0,1.97757032]
[1758205253426,0.01307,117890.0,117880.0,1.41708]
[1758205253631,4e-05,117890.0,117880.0,2.31757032]
[1758205253825,4e-05,117890.0,117880.0,1.75708]
[1758205254030,4e-05,117890.0,117880.0,2.31757032]
[1758205254539,4e-05,117890.0,117880.0,2.31753032]
[1758205255134,4e-05,117890.0,117880.0,2.31749032]
[1758205255534,0.01307,117890.0,117880.0,0.7108]
[1758205255734,0.45473093,117890.0,117880.0,1.20018186]
[1758205256040,0.70473093,117890.0,117880.0,1.99638186]
[1758205256240,0.28504,117890.0,117880.0,1.99638186]
[1758205256427,0.70473093,117890.0,117880.0,1.99638186]
[1758205256633,0.28504,117890.0,117880.0,1.99638186]
[1758205257030,0.26307,117890.0,117880.0,1.99638186]
[1758205257229,0.26307,117890.0,117880.0,1.99634186]
[1758205257441,0.01307,117890.0,117880.0,1.99634186]
[1758205257644,4e-05,117890.0,117880.0,1.99634186]
[1758205258241,0.01349,117890.0,117880.0,1.99634186]
[1758205258635,0.01349,117890.0,117880.0,1.20018186]
[1758205258845,0.03611,117890.0,117880.0,1.99634186]
[1758205259341,0.01349,117890.0,117880.0,1.99634186]
[1758205260740,4e-05,117890.0,117880.0,1.99634186]
[1758205260949,0.70516093,117890.0,117880.0,1.20018186]
[1758205261135,0.70516093,117890.0,117880.0,1.99630186]
[1758205261341,0.26334,117890.0,117880.0,1.99630186]
[1758205263239,0.26334,117890.0,117880.0,1.15692]
[1758205263441,0.26334,117890.0,117880.0,1.99630186]
[1758205264039,1.12485186,117890.0,117880.0,0.3608]
[1758205264240,1.06596093,117890.0,117880.0,0.79612]
[1758205264445,0.03543,117880.0,117870.0,0.80882997]
[1758205264641,1.12481186,117880.0,117870.0,0.3608]
[1758205264851,0.03543,117870.0,117860.0,0.78059093]
[1758205265043,0.45512093,117870.0,117860.0,1.57661093]
[1758205265244,0.45512093,117870.0,117860.0,1.16558882]
[1758205265245,0.70512093,117870.0,117860.0,1.16558882]
[1758205265745,0.70512093,117870.0,117860.0,1.58527975]
[1758205265943,0.28543,117870.0,117860.0,2.00497068]
[1758205266139,0.28543,117870.0,117860.0,1.16558882]
[1758205266444,0.03543,117870.0,117860.0,2.00697068]
[1758205266650,0.0133,117870.0,117860.0,2.00697068]
[1758205266840,0.0133,117870.0,117860.0,1.16858882]
[1758205267243,0.0133,117870.0,117860.0,2.58797068]
[1758205267550,0.0133,117870.0,117860.0,0.95146882]
[1758205267749,0.45512093,117870.0,117860.0,2.58897068]
[1758205267950,0.45512093,117870.0,117860.0,1.74958882]
[1758205268151,0.45512093,117870.0,117860.0,2.58897068]
[1758205268351,0.03543,117870.0,117860.0,2.58897068]
[1758205269356,0.45512093,117870.0,117860.0,2.58897068]
[1758205270249,0.45512093,117870.0,117860.0,1.74958882]
[1758205270450,0.03543,117870.0,117860.0,2.58897068]
[1758205270841,0.03543,117870.0,117860.0,1.74958882]
[1758205271152,0.03543,117870.0,117860.0,2.58897068]
[1758205273057,0.03543,117870.0,117860.0,1.74958882]
[1758205273248,0.03543,117870.0,117860.0,2.58897068]
[1758205273552,0.03543,117870.0,117860.0,1.74958882]
[1758205273748,0.03543,117870.0,117860.0,1.37315975]
[1758205273949,0.45512093,117870.0,117860.0,1.74962882]
[1758205274146,0.45512093,117870.0,117860.0,2.17079975]
[1758205274346,0.03543,117870.0,117860.0,1.37315975]
[1758205274547,0.45512093,117870.0,117860.0,2.17079975]
[1758205275046,0.03543,117870.0,117860.0,2.59049068]
[1758205275256,0.45512093,117870.0,117860.0,2.59049068]
[1758205275647,0.03543,117870.0,117860.0,2.59049068]
[1758205275854,0.45512093,117870.0,117860.0,2.59049068]
[1758205276152,0.45512093,117870.0,117860.0,0.95346882]
[1758205276454,0.45512093,117870.0,117860.0,2.17047975]
[1758205276854,0.45512093,117870.0,117860.0,1.75078882]
[1758205277055,0.45512093,117870.0,117860.0,2.17047975]
[1758205277558,0.45512093,117870.0,117860.0,1.59047975]
[1758205278050,0.45512093,117870.0,117860.0,1.17082882]
[1758205278256,0.45512093,117870.0,117860.0,0.37346882]
[1758205278451,0.03543,117870.0,117860.0,1.59079975]
[1758205278755,0.45512093,117870.0,117860.0,2.01045068]
[1758205279149,0.45512093,117870.0,117860.0,2.01029068]
[1758205279659,0.45512093,117870.0,117860.0,1.59059975]
[1758205279849,0.45512093,117870.0,117860.0,1.59151975]
[1758205280449,0.45512093,117870.0,117860.0,1.17182882]
[1758205280646,0.70512093,117870.0,117860.0,1.163]
[1758205280850,1.12481186,117870.0,117860.0,0.36464]
[1758205281253,1.12481186,117870.0,117860.0,0.004]
[1758205281846,1.48561186,117870.0,117860.0,0.004]
[1758205283257,2.28397186,117870.0,117860.0,0.004]
[1758205284154,2.29254375,117870.0,117860.0,0.004]
[1758205285258,1.49418375,117870.0,117860.0,0.004]
[1758205285453,1.20272189,117870.0,117860.0,0.004]
[1758205285659,2.04210375,117870.0,117860.0,0.004]
[1758205285962,0.82449282,117870.0,117860.0,0.004]
[1758205286355,1.23561186,117870.0,117860.0,0.004]
[1758205286556,1.61424093,117870.0,117860.0,0.004]
[1758205286757,0.45512093,117870.0,117860.0,0.004]
[1758205287460,0.03543,117870.0,117860.0,0.004]
[1758205287665,0.45512093,117870.0,117860.0,0.004]
[1758205290561,0.03543,117870.0,117860.0,0.78449093]
[1758205290865,0.03543,117870.0,117860.0,0.6148]
[1758205291166,0.03543,117870.0,117860.0,1.45418186]
[1758205291865,0.45512093,117870.0,117860.0,1.45418186]
[1758205292359,0.03543,117870.0,117860.0,1.45418186]
[1758205293772,0.03543,117870.0,117860.0,1.85418186]
[1758205294457,0.03543,117870.0,117860.0,2.65218186]
[1758205294861,0.03543,117870.0,117860.0,1.85418186]
[1758205295062,0.45512093,117870.0,117860.0,1.85418186]
[1758205295263,0.45512093,117870.0,117860.0,2.23217093]
[1758205295460,0.45512093,117870.0,117860.0,1.43449093]
[1758205295665,0.45512093,117870.0,117860.0,2.23217093]
[1758205296170,0.45512093,117870.0,117860.0,1.43449093]
[1758205296478,0.45512093,117870.0,117860.0,2.23189093]
[1758205297175,0.45512093,117870.0,117860.0,2.23165093]
[1758205297861,0.45512093,117870.0,117860.0,2.23157093]
[1758205298376,0.45512093,117870.0,117860.0,2.23149093]
[1758205298969,0.45512093,117870.0,117860.0,1.43449093]
[1758205299274,0.45512093,117870.0,117860.0,1.98141093]
[1758205299876,0.45512093,117870.0,117860.0,1.18449093]
[1758205300069,0.45512093,117870.0,117860.0,1.98093093]
[1758205301676,0.45512093,117870.0,117860.0,2.40062186]
[1758205301874,0.45512093,117870.0,117860.0,1.60418186]
[1758205302176,0.45512093,117870.0,117860.0,2.40062186]
[1758205302873,0.03543,117870.0,117860.0,2.40062186]
[1758205303079,0.45512093,117870.0,117860.0,2.40062186]
[1758205303379,0.03543,117870.0,117860.0,2.40062186]
[1758205303574,0.03543,117870.0,117860.0,1.56124]
[1758205303774,0.03543,117870.0,117860.0,2.40062186]
[1758205304571,0.0133,117870.0,117860.0,2.40062186]
[1758205305875,0.0133,117870.0,117860.0,2.40054186]
[1758205306179,0.0133,117870.0,117860.0,1.60418186]
[1758205306377,0.0133,117870.0,117860.0,2.40054186]
[1758205306982,0.0133,117870.0,117860.0,0.7648]
[1758205307183,0.0133,117870.0,117860.0,2.40054186]
[1758205307480,0.45629093,117870.0,117860.0,2.40054186]
[1758205307780,0.45629093,117870.0,117860.0,1.60418186]
[1758205308082,0.45629093,117870.0,117860.0,2.40054186]
[1758205308274,0.45629093,117870.0,117860.0,1.60418186]
[1758205308579,0.45629093,117870.0,117860.0,2.40054186]
[1758205308781,0.0366,117870.0,117860.0,2.40054186]
[1758205308981,0.45629093,117870.0,117860.0,2.40054186]
[1758205309683,0.45629093,117870.0,117860.0,1.56016]
[1758205309875,0.45629093,117870.0,117860.0,0.7638]
[1758205310077,0.45629093,117870.0,117860.0,0.3638]
[1758205310478,0.45629093,117870.0,117860.0,0.78349093]
[1758205311082,0.45629093,117870.0,117860.0,0.78249093]
[1758205311282,0.45629093,117870.0,117860.0,0.78349093]
[1758205311777,0.45629093,117870.0,117860.0,0.3618]
[1758205312084,0.45629093,117870.0,117860.0,0.78249093]
[1758205313184,0.70629093,117870.0,117860.0,0.3628]